[Event "*** Titled Tuesday Blitz"]
[Site "Chess.com"]
[Date "2021.04.27"]
[Round "6"]
[White "queen_iryna"]
[Black "1977Ivan"]
[Result "1/2-1/2"]
[WhiteElo "2386"]
[BlackElo "2643"]
[TimeControl "180+1"]
[EndTime "11:06:49 PDT"]
[Termination "Game drawn by repetition"]

1. e4 {[%clk 0:03:00.9]} 1... c5 {[%clk 0:02:55.9]} 2. Nf3 {[%clk 0:03:00.8]}
2... e6 {[%clk 0:02:56.4]} 3. c4 {[%clk 0:03:00.1]} 3... Nc6 {[%clk 0:02:55.2]}
4. Nc3 {[%clk 0:02:59.8]} 4... g5 {[%clk 0:02:52.1]} 5. h3 {[%clk 0:02:57]} 5...
Bg7 {[%clk 0:02:46.3]} 6. d3 {[%clk 0:02:55.9]} 6... h6 {[%clk 0:02:45.6]} 7.
Be3 {[%clk 0:02:54.7]} 7... Nd4 {[%clk 0:02:45.1]} 8. Bxd4 {[%clk 0:02:47.2]}
8... cxd4 {[%clk 0:02:45]} 9. Nb5 {[%clk 0:02:47.2]} 9... Qb6 {[%clk 0:02:44.5]}
10. Qb3 {[%clk 0:02:41.4]} 10... a6 {[%clk 0:02:32.3]} 11. Na3 {[%clk 0:02:31]}
11... Qa5+ {[%clk 0:02:31.2]} 12. Nd2 {[%clk 0:02:24.4]} 12... Ne7 {[%clk
0:02:31.7]} 13. Nc2 {[%clk 0:02:22.9]} 13... Nc6 {[%clk 0:02:21.9]} 14. Be2
{[%clk 0:02:11.9]} 14... d6 {[%clk 0:02:21.7]} 15. a3 {[%clk 0:01:31.2]} 15...
Bd7 {[%clk 0:02:15.7]} 16. Qa2 {[%clk 0:01:30.9]} 16... Qd8 {[%clk 0:01:56.6]}
17. b4 {[%clk 0:01:27.9]} 17... a5 {[%clk 0:01:37.3]} 18. b5 {[%clk 0:01:26.4]}
18... Ne7 {[%clk 0:01:35.4]} 19. a4 {[%clk 0:01:16.1]} 19... h5 {[%clk
0:01:26.7]} 20. Rc1 {[%clk 0:01:11]} 20... Ng6 {[%clk 0:01:26]} 21. Nb3 {[%clk
0:01:08.2]} 21... Nf4 {[%clk 0:01:08.5]} 22. g3 {[%clk 0:01:07.1]} 22... Nxe2
{[%clk 0:01:04.5]} 23. Kxe2 {[%clk 0:01:08]} 23... e5 {[%clk 0:00:56.4]} 24. Ne1
{[%clk 0:00:50.2]} 24... b6 {[%clk 0:00:55.5]} 25. Nf3 {[%clk 0:00:47.3]} 25...
O-O {[%clk 0:00:52.5]} 26. h4 {[%clk 0:00:44.8]} 26... g4 {[%clk 0:00:51.8]} 27.
Nfd2 {[%clk 0:00:44.7]} 27... Bh6 {[%clk 0:00:49.8]} 28. Rcf1 {[%clk 0:00:43.7]}
28... Be6 {[%clk 0:00:49.2]} 29. Qc2 {[%clk 0:00:42]} 29... Rc8 {[%clk
0:00:44.3]} 30. Qd1 {[%clk 0:00:40.8]} 30... f5 {[%clk 0:00:42]} 31. Qe1 {[%clk
0:00:39.4]} 31... f4 {[%clk 0:00:40]} 32. Kd1 {[%clk 0:00:37.7]} 32... f3 {[%clk
0:00:34.1]} 33. Kc2 {[%clk 0:00:32.2]} 33... d5 {[%clk 0:00:21.9]} 34. exd5
{[%clk 0:00:33.1]} 34... Qxd5 {[%clk 0:00:22]} 35. Qe4 {[%clk 0:00:27.7]} 35...
Qxe4 {[%clk 0:00:19.6]} 36. Nxe4 {[%clk 0:00:28.6]} 36... Bf5 {[%clk 0:00:19.1]}
37. Nbd2 {[%clk 0:00:25.8]} 37... Bg6 {[%clk 0:00:15.5]} 38. Re1 {[%clk
0:00:23.9]} 38... Kg7 {[%clk 0:00:15.9]} 39. Kd1 {[%clk 0:00:22.6]} 39... Rfd8
{[%clk 0:00:15.9]} 40. Rhf1 {[%clk 0:00:20.8]} 40... Bf5 {[%clk 0:00:16.3]} 41.
Rg1 {[%clk 0:00:20.9]} 41... Kg6 {[%clk 0:00:16.9]} 42. Rh1 {[%clk 0:00:21.1]}
42... Rd7 {[%clk 0:00:15.5]} 43. Rhg1 {[%clk 0:00:20.9]} 43... Kf7 {[%clk
0:00:15]} 44. Rh1 {[%clk 0:00:20.4]} 44... Ke6 {[%clk 0:00:15]} 45. Rhg1 {[%clk
0:00:20.2]} 45... Kf7 {[%clk 0:00:14.9]} 46. Rh1 {[%clk 0:00:19.9]} 46... Kg6
{[%clk 0:00:15]} 47. Rhg1 {[%clk 0:00:20.2]} 47... Rcc7 {[%clk 0:00:13.6]} 48.
Rh1 {[%clk 0:00:20]} 48... Rc8 {[%clk 0:00:13.3]} 1/2-1/2

[Event "*** Titled Tuesday Blitz"]
[Site "Chess.com"]
[Date "2021.04.27"]
[Round "6"]
[White "Romadk"]
[Black "salomez"]
[Result "1/2-1/2"]
[WhiteElo "2321"]
[BlackElo "2126"]
[TimeControl "180+1"]
[EndTime "11:06:49 PDT"]
[Termination "Game drawn - insufficient material"]

1. d4 {[%clk 0:03:00]} 1... Nf6 {[%clk 0:02:59.1]} 2. Nf3 {[%clk 0:03:00.2]}
2... g6 {[%clk 0:02:59.3]} 3. c4 {[%clk 0:02:59.9]} 3... Bg7 {[%clk 0:02:58.5]}
4. Nc3 {[%clk 0:03:00.8]} 4... d5 {[%clk 0:02:57.7]} 5. cxd5 {[%clk 0:03:00.2]}
5... Nxd5 {[%clk 0:02:58.6]} 6. e4 {[%clk 0:03:01.1]} 6... Nxc3 {[%clk
0:02:58.9]} 7. bxc3 {[%clk 0:03:02]} 7... O-O {[%clk 0:02:58.6]} 8. Be2 {[%clk
0:02:56.7]} 8... c5 {[%clk 0:02:58.4]} 9. Be3 {[%clk 0:02:56.6]} 9... cxd4
{[%clk 0:02:57.9]} 10. cxd4 {[%clk 0:02:56.9]} 10... Qa5+ {[%clk 0:02:55.8]} 11.
Qd2 {[%clk 0:02:53.5]} 11... Qxd2+ {[%clk 0:02:54.9]} 12. Nxd2 {[%clk
0:02:54.4]} 12... f5 {[%clk 0:02:52.8]} 13. f3 {[%clk 0:02:50.6]} 13... Nc6
{[%clk 0:02:51.5]} 14. Nb3 {[%clk 0:02:50.6]} 14... fxe4 {[%clk 0:02:46]} 15.
fxe4 {[%clk 0:02:51.5]} 15... Rd8 {[%clk 0:02:43]} 16. Bc4+ {[%clk 0:02:36.5]}
16... Kh8 {[%clk 0:02:42.4]} 17. Rd1 {[%clk 0:02:34.6]} 17... Nb4 {[%clk
0:02:37.1]} 18. O-O {[%clk 0:02:29.4]} 18... Nxa2 {[%clk 0:02:31.5]} 19. e5
{[%clk 0:02:09.5]} 19... Nc3 {[%clk 0:02:26.9]} 20. Rc1 {[%clk 0:02:02.3]} 20...
b5 {[%clk 0:02:20.8]} 21. Bd3 {[%clk 0:01:54.1]} 21... b4 {[%clk 0:02:17.6]} 22.
Bg5 {[%clk 0:01:54.2]} 22... Bxe5 {[%clk 0:01:39.4]} 23. Bxe7 {[%clk 0:01:50.8]}
23... Rxd4 {[%clk 0:01:39]} 24. Rf8+ {[%clk 0:01:40.7]} 24... Kg7 {[%clk
0:01:33.7]} 25. Nxd4 {[%clk 0:01:33]} 25... Bxd4+ {[%clk 0:01:34.6]} 26. Kh1
{[%clk 0:01:33.1]} 26... b3 {[%clk 0:01:25.8]} 27. Rcf1 {[%clk 0:01:32.9]} 27...
Bb7 {[%clk 0:01:16.3]} 28. R8f7+ {[%clk 0:01:27.3]} 28... Kh8 {[%clk 0:00:57.4]}
29. R7f4 {[%clk 0:01:25.2]} 29... Bg7 {[%clk 0:00:51.4]} 30. Rb4 {[%clk
0:01:25.3]} 30... Bd5 {[%clk 0:00:40.7]} 31. Ba6 {[%clk 0:01:08.9]} 31... Re8
{[%clk 0:00:34.6]} 32. Bg5 {[%clk 0:01:06.8]} 32... Ne4 {[%clk 0:00:29]} 33. Be3
{[%clk 0:01:02.6]} 33... b2 {[%clk 0:00:13.6]} 34. Bxa7 {[%clk 0:00:57.3]} 34...
Nd2 {[%clk 0:00:12.8]} 35. Rg1 {[%clk 0:00:46.2]} 35... b1=Q {[%clk 0:00:07.5]}
36. Rbxb1 {[%clk 0:00:45.4]} 36... Nxb1 {[%clk 0:00:08.4]} 37. Rxb1 {[%clk
0:00:46.1]} 37... Ra8 {[%clk 0:00:07.7]} 38. Rb8+ {[%clk 0:00:45.9]} 38... Rxb8
{[%clk 0:00:07.3]} 39. Bxb8 {[%clk 0:00:46.8]} 39... Bd4 {[%clk 0:00:07.3]} 40.
Bf1 {[%clk 0:00:46.5]} 40... Kg7 {[%clk 0:00:07.5]} 41. Bg3 {[%clk 0:00:45.9]}
41... Kf6 {[%clk 0:00:07.7]} 42. h3 {[%clk 0:00:46.4]} 42... Be5 {[%clk
0:00:07.9]} 43. Bh2 {[%clk 0:00:47.3]} 43... Bxh2 {[%clk 0:00:07.4]} 44. Kxh2
{[%clk 0:00:48.2]} 44... Ke5 {[%clk 0:00:07.8]} 45. Kg3 {[%clk 0:00:48.7]} 45...
Kf6 {[%clk 0:00:08.2]} 46. Kf4 {[%clk 0:00:48.9]} 46... Ba2 {[%clk 0:00:08.1]}
47. g4 {[%clk 0:00:49.1]} 47... Bb1 {[%clk 0:00:08.5]} 48. g5+ {[%clk
0:00:49.4]} 48... Kg7 {[%clk 0:00:08.6]} 49. h4 {[%clk 0:00:50.3]} 49... Bc2
{[%clk 0:00:08.4]} 50. Be2 {[%clk 0:00:50.6]} 50... Bb1 {[%clk 0:00:08.1]} 51.
h5 {[%clk 0:00:51]} 51... gxh5 {[%clk 0:00:08]} 52. Bxh5 {[%clk 0:00:51.1]}
52... Bg6 {[%clk 0:00:08.9]} 53. Bg4 {[%clk 0:00:51.3]} 53... Bb1 {[%clk
0:00:08.4]} 54. Bf3 {[%clk 0:00:51.4]} 54... h6 {[%clk 0:00:08]} 55. gxh6+
{[%clk 0:00:50.6]} 55... Kxh6 {[%clk 0:00:08.9]} 1/2-1/2

[Event "*** Titled Tuesday Blitz"]
[Site "Chess.com"]
[Date "2021.04.27"]
[Round "6"]
[White "Arystanner"]
[Black "SilviusTiberius"]
[Result "1/2-1/2"]
[WhiteElo "2823"]
[BlackElo "2625"]
[TimeControl "180+1"]
[EndTime "11:06:51 PDT"]
[Termination "Game drawn by repetition"]

1. e4 {[%clk 0:03:00.9]} 1... e5 {[%clk 0:02:59.1]} 2. Nf3 {[%clk 0:03:01.1]}
2... Nc6 {[%clk 0:02:58.9]} 3. Bb5 {[%clk 0:03:01.7]} 3... Nf6 {[%clk
0:02:59.1]} 4. O-O {[%clk 0:03:01.4]} 4... Nxe4 {[%clk 0:02:58.8]} 5. d4 {[%clk
0:03:01.1]} 5... Nd6 {[%clk 0:02:58.7]} 6. dxe5 {[%clk 0:03:01.4]} 6... Nxb5
{[%clk 0:02:57.5]} 7. a4 {[%clk 0:03:01.5]} 7... Nbd4 {[%clk 0:02:57.9]} 8. Nxd4
{[%clk 0:03:01.5]} 8... d5 {[%clk 0:02:58.8]} 9. exd6 {[%clk 0:03:01.3]} 9...
Nxd4 {[%clk 0:02:57.1]} 10. Qxd4 {[%clk 0:03:01.3]} 10... Qxd6 {[%clk
0:02:57.4]} 11. Qe4+ {[%clk 0:03:01.3]} 11... Qe6 {[%clk 0:02:57.4]} 12. Qd4
{[%clk 0:03:01.8]} 12... Qd6 {[%clk 0:02:57.6]} 13. Qe3+ {[%clk 0:03:02.3]}
13... Qe6 {[%clk 0:02:53]} 14. Qg3 {[%clk 0:03:01.5]} 14... Bd7 {[%clk
0:02:07.3]} 15. Bf4 {[%clk 0:03:00.4]} 15... Bd6 {[%clk 0:02:01]} 16. Bxd6
{[%clk 0:03:00.4]} 16... Qxd6 {[%clk 0:01:59.4]} 17. Qxd6 {[%clk 0:02:27.3]}
17... cxd6 {[%clk 0:02:00.3]} 18. Nc3 {[%clk 0:02:25.9]} 18... Bc6 {[%clk
0:01:59.8]} 19. Rad1 {[%clk 0:02:22.6]} 19... O-O-O {[%clk 0:01:58.7]} 20. Rd4
{[%clk 0:02:22]} 20... Rhe8 {[%clk 0:01:57.4]} 21. Rfd1 {[%clk 0:02:20.7]} 21...
Re6 {[%clk 0:01:56.7]} 22. b4 {[%clk 0:02:19.6]} 22... b6 {[%clk 0:01:54]} 23.
h3 {[%clk 0:02:13.9]} 23... h5 {[%clk 0:01:47.4]} 24. Rc4 {[%clk 0:02:13.7]}
24... Kd7 {[%clk 0:01:40.2]} 25. b5 {[%clk 0:02:04.6]} 25... Bb7 {[%clk
0:01:39.7]} 26. Nd5 {[%clk 0:01:59.6]} 26... Bxd5 {[%clk 0:01:38.3]} 27. Rxd5
{[%clk 0:02:00.5]} 27... g6 {[%clk 0:01:29.4]} 28. Rc6 {[%clk 0:01:57.9]} 28...
Ke7 {[%clk 0:01:28.7]} 29. g3 {[%clk 0:01:53.4]} 29... Kd7 {[%clk 0:01:25.7]}
30. h4 {[%clk 0:01:51.9]} 30... Rc8 {[%clk 0:01:25.7]} 31. Rxc8 {[%clk 0:01:45]}
31... Kxc8 {[%clk 0:01:26.6]} 32. Rd4 {[%clk 0:01:43.3]} 32... Kd7 {[%clk
0:01:25.8]} 33. Kg2 {[%clk 0:01:39.7]} 33... Re5 {[%clk 0:01:25.9]} 34. Kf3
{[%clk 0:01:36.6]} 34... Rc5 {[%clk 0:01:25.7]} 35. c4 {[%clk 0:01:36]} 35...
Ke6 {[%clk 0:01:14.9]} 36. Ke3 {[%clk 0:01:23.1]} 36... d5 {[%clk 0:01:06.5]}
37. cxd5+ {[%clk 0:01:23.3]} 37... Rxd5 {[%clk 0:01:06.7]} 38. Rc4 {[%clk
0:01:23.9]} 38... Rd7 {[%clk 0:01:01.2]} 39. f3 {[%clk 0:01:20.5]} 39... f6
{[%clk 0:00:50.4]} 40. Kf4 {[%clk 0:01:19.3]} 40... Rd5 {[%clk 0:00:41.9]} 41.
Rc6+ {[%clk 0:00:58.1]} 41... Rd6 {[%clk 0:00:41.8]} 42. Rxd6+ {[%clk
0:00:21.2]} 42... Kxd6 {[%clk 0:00:42.7]} 43. g4 {[%clk 0:00:22.1]} 43... Ke6
{[%clk 0:00:38.3]} 44. gxh5 {[%clk 0:00:18]} 44... gxh5 {[%clk 0:00:39.2]} 45.
Ke4 {[%clk 0:00:18.7]} 45... f5+ {[%clk 0:00:31.3]} 46. Kd4 {[%clk 0:00:14]}
46... Kd6 {[%clk 0:00:31.4]} 47. f4 {[%clk 0:00:11.4]} 47... Ke6 {[%clk
0:00:31.4]} 48. Kc4 {[%clk 0:00:11.8]} 48... Kd6 {[%clk 0:00:30.9]} 49. Kd4
{[%clk 0:00:10.4]} 49... Ke6 {[%clk 0:00:30.8]} 50. Kc4 {[%clk 0:00:09.3]} 50...
Kd6 {[%clk 0:00:31]} 51. Kd4 {[%clk 0:00:08.5]} 1/2-1/2

[Event "*** Titled Tuesday Blitz"]
[Site "Chess.com"]
[Date "2021.04.27"]
[Round "6"]
[White "Das_Virus_2020"]
[Black "Kostukov_Alex"]
[Result "1-0"]
[WhiteElo "2506"]
[BlackElo "2305"]
[TimeControl "180+1"]
[EndTime "11:06:51 PDT"]
[Termination "Das_Virus_2020 won on time"]

1. e4 {[%clk 0:03:00.9]} 1... c5 {[%clk 0:02:59.6]} 2. c3 {[%clk 0:03:00.4]}
2... g6 {[%clk 0:02:57.3]} 3. d4 {[%clk 0:03:00]} 3... cxd4 {[%clk 0:02:58.2]}
4. cxd4 {[%clk 0:03:00.7]} 4... d5 {[%clk 0:02:58.3]} 5. e5 {[%clk 0:03:00.3]}
5... Nc6 {[%clk 0:02:58.3]} 6. Nc3 {[%clk 0:02:59.9]} 6... Bg7 {[%clk
0:02:58.3]} 7. h3 {[%clk 0:02:59.2]} 7... Nh6 {[%clk 0:02:58.3]} 8. Nf3 {[%clk
0:02:59.4]} 8... O-O {[%clk 0:02:58.2]} 9. Be2 {[%clk 0:02:59.7]} 9... f6 {[%clk
0:02:58.7]} 10. exf6 {[%clk 0:02:58.6]} 10... exf6 {[%clk 0:02:56.3]} 11. O-O
{[%clk 0:02:58.2]} 11... Be6 {[%clk 0:02:56.3]} 12. Bf4 {[%clk 0:02:56.7]} 12...
Nf5 {[%clk 0:02:48.4]} 13. Qd2 {[%clk 0:02:54.7]} 13... h5 {[%clk 0:02:42.8]}
14. Rfe1 {[%clk 0:02:54.1]} 14... Bf7 {[%clk 0:02:42.7]} 15. Bf1 {[%clk
0:02:30.6]} 15... g5 {[%clk 0:02:40]} 16. Bh2 {[%clk 0:02:16.5]} 16... g4 {[%clk
0:02:39.3]} 17. Qf4 {[%clk 0:01:59.9]} 17... Bg6 {[%clk 0:01:52]} 18. hxg4
{[%clk 0:01:34.7]} 18... Bh6 {[%clk 0:01:51.2]} 19. g5 {[%clk 0:01:26.2]} 19...
fxg5 {[%clk 0:01:43.6]} 20. Qc7 {[%clk 0:01:25.9]} 20... Qxc7 {[%clk 0:01:40.6]}
21. Bxc7 {[%clk 0:01:25.7]} 21... Ncxd4 {[%clk 0:01:04.3]} 22. Nxd4 {[%clk
0:01:20.8]} 22... Nxd4 {[%clk 0:01:04.1]} 23. Re7 {[%clk 0:01:12.4]} 23... Rae8
{[%clk 0:00:44.2]} 24. Rae1 {[%clk 0:01:08.8]} 24... Nc2 {[%clk 0:00:26.3]} 25.
Rxe8 {[%clk 0:01:06.6]} 25... Rxe8 {[%clk 0:00:27.2]} 26. Rxe8+ {[%clk
0:01:06.4]} 26... Bxe8 {[%clk 0:00:28.1]} 27. Nxd5 {[%clk 0:01:06.5]} 27... Bf7
{[%clk 0:00:26.5]} 28. Nf6+ {[%clk 0:01:04.6]} 28... Kg7 {[%clk 0:00:24.3]} 29.
Be5 {[%clk 0:01:04.1]} 29... Kf8 {[%clk 0:00:23]} 30. a3 {[%clk 0:00:57.7]}
30... Be6 {[%clk 0:00:20.6]} 31. Nxh5 {[%clk 0:00:55.9]} 31... Kf7 {[%clk
0:00:16.6]} 32. Bd3 {[%clk 0:00:54.9]} 32... Na1 {[%clk 0:00:16.4]} 33. Ng3
{[%clk 0:00:50.6]} 33... Nb3 {[%clk 0:00:14.6]} 34. Nf5 {[%clk 0:00:47.8]} 34...
Bf8 {[%clk 0:00:12.7]} 35. Nd4 {[%clk 0:00:45.1]} 35... Nxd4 {[%clk 0:00:09.2]}
36. Bxd4 {[%clk 0:00:46]} 36... Bg7 {[%clk 0:00:04.9]} 37. Bxg7 {[%clk
0:00:44.4]} 37... Kxg7 {[%clk 0:00:05.8]} 38. f3 {[%clk 0:00:43.8]} 38... Kf6
{[%clk 0:00:06]} 39. Kf2 {[%clk 0:00:44.4]} 39... Ke5 {[%clk 0:00:06.9]} 40. Ke3
{[%clk 0:00:44.7]} 40... b6 {[%clk 0:00:07.5]} 41. g3 {[%clk 0:00:44.9]} 41...
Bd7 {[%clk 0:00:06]} 42. f4+ {[%clk 0:00:45]} 42... gxf4+ {[%clk 0:00:06.6]} 43.
gxf4+ {[%clk 0:00:45.9]} 43... Kf6 {[%clk 0:00:06.7]} 44. Kd4 {[%clk 0:00:46.1]}
44... Bc6 {[%clk 0:00:04.3]} 45. Be4 {[%clk 0:00:45.9]} 45... Bd7 {[%clk
0:00:04.6]} 46. Kd5 {[%clk 0:00:45.4]} 46... Ke7 {[%clk 0:00:04.1]} 47. Ke5
{[%clk 0:00:45.4]} 47... a6 {[%clk 0:00:04.3]} 48. f5 {[%clk 0:00:45.6]} 48...
a5 {[%clk 0:00:04.6]} 49. f6+ {[%clk 0:00:45.5]} 49... Kf8 {[%clk 0:00:05]} 50.
Bd5 {[%clk 0:00:45.2]} 50... b5 {[%clk 0:00:05.1]} 51. Kd6 {[%clk 0:00:45.2]}
51... Be8 {[%clk 0:00:04.8]} 52. Kc5 {[%clk 0:00:44.3]} 52... b4 {[%clk
0:00:02.3]} 53. axb4 {[%clk 0:00:42.9]} 53... axb4 {[%clk 0:00:03.2]} 54. Kxb4
{[%clk 0:00:43.3]} 1-0

[Event "*** Titled Tuesday Blitz"]
[Site "Chess.com"]
[Date "2021.04.27"]
[Round "6"]
[White "WonderChampion"]
[Black "Pantata007"]
[Result "0-1"]
[WhiteElo "2105"]
[BlackElo "2318"]
[TimeControl "180+1"]
[EndTime "11:06:52 PDT"]
[Termination "Pantata007 won by resignation"]

1. d4 {[%clk 0:03:00.9]} 1... d5 {[%clk 0:02:58.6]} 2. Bg5 {[%clk 0:02:58.5]}
2... h6 {[%clk 0:02:57.9]} 3. Bf4 {[%clk 0:02:57.1]} 3... c5 {[%clk 0:02:56.5]}
4. c3 {[%clk 0:02:50.4]} 4... Nc6 {[%clk 0:02:53.9]} 5. e3 {[%clk 0:02:48.9]}
5... Nf6 {[%clk 0:02:53.1]} 6. Nf3 {[%clk 0:02:47.7]} 6... Qb6 {[%clk
0:02:51.8]} 7. Qc1 {[%clk 0:02:46.2]} 7... Bf5 {[%clk 0:02:48.5]} 8. Na3 {[%clk
0:02:43.4]} 8... e6 {[%clk 0:02:35.3]} 9. Nb5 {[%clk 0:02:41]} 9... Rc8 {[%clk
0:02:27.1]} 10. Nd6+ {[%clk 0:02:26.8]} 10... Bxd6 {[%clk 0:02:26.1]} 11. Bxd6
{[%clk 0:02:27.7]} 11... cxd4 {[%clk 0:02:25.6]} 12. exd4 {[%clk 0:02:27.9]}
12... Nxd4 {[%clk 0:02:07.3]} 13. Nxd4 {[%clk 0:02:20.7]} 13... Qxd6 {[%clk
0:02:07.1]} 14. Nxf5 {[%clk 0:02:18.4]} 14... exf5 {[%clk 0:02:08]} 15. Bd3
{[%clk 0:02:18.8]} 15... O-O {[%clk 0:02:03.9]} 16. O-O {[%clk 0:02:14.7]} 16...
Ng4 {[%clk 0:01:50.8]} 17. g3 {[%clk 0:02:11.4]} 17... Qf6 {[%clk 0:01:43.7]}
18. Qf4 {[%clk 0:02:09.7]} 18... Ne5 {[%clk 0:01:40.5]} 19. Bxf5 {[%clk
0:02:05]} 19... Rc4 {[%clk 0:01:35.7]} 20. Bh7+ {[%clk 0:01:37.5]} 20... Kxh7
{[%clk 0:01:29.2]} 21. Qxf6 {[%clk 0:01:38.4]} 21... gxf6 {[%clk 0:01:28.9]} 22.
Rad1 {[%clk 0:01:37.9]} 22... Rd8 {[%clk 0:01:13.1]} 23. f4 {[%clk 0:01:33.5]}
23... Nc6 {[%clk 0:01:09.1]} 24. Rf2 {[%clk 0:01:32.6]} 24... a5 {[%clk
0:00:47.1]} 25. Rfd2 {[%clk 0:01:30.7]} 25... Rc5 {[%clk 0:00:47.4]} 26. Kf2
{[%clk 0:01:27.8]} 26... Kg6 {[%clk 0:00:45.8]} 27. Ke3 {[%clk 0:01:27.5]} 27...
Kf5 {[%clk 0:00:45.2]} 28. Kf3 {[%clk 0:01:27]} 28... h5 {[%clk 0:00:44.5]} 29.
h3 {[%clk 0:01:26.9]} 29... d4 {[%clk 0:00:29]} 30. g4+ {[%clk 0:01:25.7]} 30...
hxg4+ {[%clk 0:00:28.6]} 31. hxg4+ {[%clk 0:01:26.6]} 31... Kg6 {[%clk 0:00:28]}
32. f5+ {[%clk 0:01:21.4]} 32... Kg7 {[%clk 0:00:24]} 33. Kf4 {[%clk 0:01:19.6]}
33... Rcd5 {[%clk 0:00:21.8]} 34. c4 {[%clk 0:01:18.4]} 34... R5d7 {[%clk
0:00:20.3]} 35. Rh2 {[%clk 0:01:17.7]} 35... Rh8 {[%clk 0:00:19.2]} 36. Rhd2
{[%clk 0:01:17.3]} 36... Rh3 {[%clk 0:00:13.3]} 37. b3 {[%clk 0:01:16.9]} 37...
b6 {[%clk 0:00:11.9]} 38. Re1 {[%clk 0:01:07.1]} 38... d3 {[%clk 0:00:11.1]} 39.
Re8 {[%clk 0:01:05.4]} 39... Rd4+ {[%clk 0:00:10]} 40. Re4 {[%clk 0:01:03.4]}
40... Rxe4+ {[%clk 0:00:06.1]} 41. Kxe4 {[%clk 0:01:04.3]} 41... Nb4 {[%clk
0:00:05]} 42. a3 {[%clk 0:01:02.9]} 42... Na6 {[%clk 0:00:05.5]} 43. Kd5 {[%clk
0:01:00.9]} 43... Nc5 {[%clk 0:00:05.4]} 44. b4 {[%clk 0:01:00.2]} 44... Nb3
{[%clk 0:00:05.3]} 45. Rd1 {[%clk 0:01:00]} 45... axb4 {[%clk 0:00:05.4]} 46.
axb4 {[%clk 0:00:59.8]} 46... d2 {[%clk 0:00:05.8]} 47. c5 {[%clk 0:00:59.3]}
47... bxc5 {[%clk 0:00:05.6]} 48. bxc5 {[%clk 0:01:00.2]} 48... Rc3 {[%clk
0:00:04.9]} 49. c6 {[%clk 0:00:59.7]} 49... Rc1 {[%clk 0:00:04.8]} 50. c7 {[%clk
0:00:54.2]} 50... Rxc7 {[%clk 0:00:03.8]} 51. Ke4 {[%clk 0:00:51.1]} 51... Rc1
{[%clk 0:00:04.1]} 52. Rxd2 {[%clk 0:00:51.6]} 52... Nxd2+ {[%clk 0:00:04.3]}
53. Kd3 {[%clk 0:00:52.5]} 53... Nb3 {[%clk 0:00:04.5]} 54. Ke2 {[%clk
0:00:52.9]} 54... Rc8 {[%clk 0:00:05.4]} 55. Ke3 {[%clk 0:00:53]} 55... Kh6
{[%clk 0:00:06.3]} 56. Ke4 {[%clk 0:00:53.9]} 0-1

[Event "*** Titled Tuesday Blitz"]
[Site "Chess.com"]
[Date "2021.04.27"]
[Round "6"]
[White "Mikhail_Golubev"]
[Black "Valeron87"]
[Result "1/2-1/2"]
[WhiteElo "2563"]
[BlackElo "2418"]
[TimeControl "180+1"]
[EndTime "11:06:53 PDT"]
[Termination "Game drawn by repetition"]

1. e4 {[%clk 0:03:00.9]} 1... c5 {[%clk 0:02:58.8]} 2. Nf3 {[%clk 0:03:00]} 2...
Nc6 {[%clk 0:02:58.7]} 3. Nc3 {[%clk 0:02:59.4]} 3... Nf6 {[%clk 0:02:56.5]} 4.
Bb5 {[%clk 0:02:58.3]} 4... Qc7 {[%clk 0:02:54.1]} 5. O-O {[%clk 0:02:51.8]}
5... Nd4 {[%clk 0:02:51]} 6. Re1 {[%clk 0:02:27.4]} 6... a6 {[%clk 0:02:49.4]}
7. Bc4 {[%clk 0:02:08.5]} 7... b5 {[%clk 0:02:06.5]} 8. Nd5 {[%clk 0:01:17.5]}
8... Nxd5 {[%clk 0:01:48.7]} 9. Bxd5 {[%clk 0:01:17]} 9... Rb8 {[%clk
0:01:47.4]} 10. c3 {[%clk 0:01:00.8]} 10... Nxf3+ {[%clk 0:01:40.3]} 11. Qxf3
{[%clk 0:01:01.7]} 11... e6 {[%clk 0:01:40.7]} 12. d4 {[%clk 0:00:44.7]} 12...
c4 {[%clk 0:01:15.1]} 13. Bf4 {[%clk 0:00:44]} 13... d6 {[%clk 0:01:03.2]} 14.
e5 {[%clk 0:00:42.3]} 14... Be7 {[%clk 0:00:55]} 15. exd6 {[%clk 0:00:35.2]}
15... Bxd6 {[%clk 0:00:54.2]} 16. Bc6+ {[%clk 0:00:24.8]} 16... Bd7 {[%clk
0:00:48.5]} 17. Bxd7+ {[%clk 0:00:22.1]} 17... Qxd7 {[%clk 0:00:48.1]} 18. d5
{[%clk 0:00:17.5]} 18... O-O {[%clk 0:00:41.6]} 19. Bxd6 {[%clk 0:00:17.5]}
19... Qxd6 {[%clk 0:00:41.2]} 20. dxe6 {[%clk 0:00:18]} 20... fxe6 {[%clk
0:00:41.8]} 21. Qe4 {[%clk 0:00:13.9]} 21... Rbd8 {[%clk 0:00:29.5]} 22. Re2
{[%clk 0:00:03.6]} 22... Rf6 {[%clk 0:00:23.2]} 23. Rae1 {[%clk 0:00:03]} 23...
h6 {[%clk 0:00:16.4]} 24. h3 {[%clk 0:00:03.2]} 24... Qd5 {[%clk 0:00:16]} 25.
Qe5 {[%clk 0:00:02.7]} 25... Qxe5 {[%clk 0:00:15.7]} 26. Rxe5 {[%clk 0:00:02.3]}
26... Rd2 {[%clk 0:00:16.2]} 27. R5e2 {[%clk 0:00:02.5]} 27... Rd3 {[%clk
0:00:14]} 28. f3 {[%clk 0:00:02.5]} 28... Kf7 {[%clk 0:00:14.2]} 29. Kf2 {[%clk
0:00:02.4]} 29... h5 {[%clk 0:00:12.2]} 30. Re3 {[%clk 0:00:02.8]} 30... Rd2+
{[%clk 0:00:10.6]} 31. R1e2 {[%clk 0:00:03.4]} 31... Rxe2+ {[%clk 0:00:10.3]}
32. Rxe2 {[%clk 0:00:03.3]} 32... h4 {[%clk 0:00:10]} 33. Rd2 {[%clk 0:00:03.9]}
33... e5 {[%clk 0:00:09.9]} 34. Rd7+ {[%clk 0:00:03.8]} 34... Kg6 {[%clk
0:00:09.9]} 35. Ra7 {[%clk 0:00:04.4]} 35... Rd6 {[%clk 0:00:09.3]} 36. Ke2
{[%clk 0:00:04.9]} 36... Kf6 {[%clk 0:00:09]} 37. Rc7 {[%clk 0:00:04.9]} 37...
g5 {[%clk 0:00:08.6]} 38. Ra7 {[%clk 0:00:05]} 38... Kf5 {[%clk 0:00:08.8]} 39.
Rf7+ {[%clk 0:00:04.7]} 39... Kg6 {[%clk 0:00:08.6]} 40. Ra7 {[%clk 0:00:05.3]}
40... Kf5 {[%clk 0:00:08.6]} 41. Rf7+ {[%clk 0:00:05.2]} 41... Kg6 {[%clk
0:00:08.5]} 42. Ra7 {[%clk 0:00:05.5]} 42... Kf5 {[%clk 0:00:08.6]} 1/2-1/2